[Event "Polish Youth 1st League 2022"]
[Site "Lublin"]
[Date "2022.07.02"]
[Round "8.8"]
[White "Bartodziej, Bartosz"]
[Black "Dziewonski, Dariusz"]
[Result "1/2-1/2"]
[ECO "D30"]
[WhiteElo "1902"]
[BlackElo "1976"]
[Annotator "RC"]
[PlyCount "119"]
[EventDate "2022.06.24"]
[EventType "team-tourn"]
[EventCountry "POL"]
[SourceTitle "playchess.com"]
[Source "ChessBase"]
[SourceQuality "1"]
[TimeControl "40/5400+30:1800+30"]

1. d4 d5 2. c4 e6 3. Nf3 Nf6 4. g3 Bb4+ 5. Bd2 Bd6 6. Nc3 c6 7. Bg2 O-O 8. O-O Ne4 9. Nxe4 dxe4 10. Ne1 f5 11. f3 e5 12. fxe4 exd4 13. exf5 Bxf5 14. Nd3 Nd7 15. Qb3 Qb6 16. Bb4 Nc5 17. Qa3 Bxd3 18. exd3 a5 19. Bxc5 Bxc5 20. Qb3 Qxb3 21. axb3 Bb4 22. Be4 g6 23. Kg2 Bd2 24. h3 Kg7 25. Bf3 Rae8 26. Be4 Bb4 27. Rxf8 Rxf8 28. Bf3 Kf6 29. Be4 Ke5 30. Rf1 Rxf1 31. Kxf1 Bd2 32. Ke2 Bc1 33. h4 Bxb2 34. Kf3 Kd6 35. Ke2 Ke5 36. Kf3 Bc3 37. g4 Kd6 38. Ke2 b5 39. cxb5 cxb5 40. Kd1 Kc5 41. Kc2 Kb4 42. h5 gxh5 43. gxh5 h6 44. Bc6 Be1 45. Bd7 Bg3 46. Be8 a4 47. bxa4 bxa4 48. Bd7 Be1 49. Be8 Ka5 50. Bd7 Kb4 51. Be8 a3 52. Bf7 Kc5 53. Kb3 Bb4 54. Bg6 Kd6 55. Ka2 Ke5 56. Kb3 Bf8 57. Ka2 Kf4 58. Kb3 Ke3 59. Ka2 Kd2 60. Bf5 1/2-1/2

[Event "Polish Youth 1st League 2022"]
[Site "Lublin"]
[Date "2022.07.02"]
[Round "8.9"]
[White "Maj, Samuel"]
[Black "Nawalaniec, Adam"]
[Result "1-0"]
[ECO "E94"]
[WhiteElo "1906"]
[BlackElo "1740"]
[Annotator "RC"]
[PlyCount "77"]
[EventDate "2022.06.24"]
[EventType "team-tourn"]
[EventCountry "POL"]
[SourceTitle "playchess.com"]
[Source "ChessBase"]
[SourceQuality "1"]
[TimeControl "40/5400+30:1800+30"]

1. d4 {[%emt 0:00:13]} d6 {[%emt 0:00:01]} 2. Nf3 {[%emt 0:00:31]} g6 {[%emt 0:00:22]} 3. c4 {[%emt 0:00:09]} Bg7 {[%emt 0:00:33]} 4. Nc3 {[%emt 0:00:14]} Nf6 {[%emt 0:00:49]} 5. e4 {[%emt 0:00:20]} O-O {[%emt 0:00:34]} 6. Be2 {[%emt 0:00:17]} e5 {[%emt 0:01:46]} 7. O-O {[%emt 0:00:04]} Nbd7 {[%emt 0:03:30]} 8. Be3 {[%emt 0:00:09]} Re8 {[%emt 0:02:59]} 9. d5 {[%emt 0:00:10]} a5 {[%emt 0:12:12]} 10. Nd2 {[%emt 0:01:20]} Nf8 {[%emt 0:08:18]} 11. c5 {[%emt 0:05:02]} dxc5 {[%emt 0:03:59]} 12. Bxc5 {[%emt 0:00:40]} N6d7 {[%emt 0:02:22]} 13. Be3 {[%emt 0:01:57]} f5 {[%emt 0:02:26]} 14. f3 {[%emt 0:04:07]} f4 {[%emt 0:04:26]} 15. Bf2 {[%emt 0:00:12]} Nf6 {[%emt 0:02:17]} 16. Rc1 {[%emt 0:03:19]} Re7 {[%emt 0:10:27]} 17. Nb5 {[%emt 0:04:30]} Ne8 {[%emt 0:05:21]} 18. Qc2 {[%emt 0:03:51]} g5 {[%emt 0:07:37]} 19. Rfd1 {[%emt 0:04:21]} b6 {[%emt 0:05:26]} 20. d6 {[%emt 0:07:02]} cxd6 {[%emt 0:02:05]} 21. Nc4 {[%emt 0:01:33]} Ba6 {[%emt 0:07:03]} 22. Nbxd6 {[%emt 0:05:07]} Qc7 {[%emt 0:07:06]} 23. Qb3 {[%emt 0:03:53]} a4 {[%emt 0:01:20]} 24. Qb4 {[%emt 0:05:08]} Rd8 {[%emt 0:02:59]} 25. Bxb6 {[%emt 0:04:45]} Qb8 {[%emt 0:00:16]} 26. Qa5 {[%emt 0:14:37]} Rxd6 {[%emt 0:01:57]} 27. Qxa6 {[%emt 0:01:04]} Rc6 {[%emt 0:01:16]} 28. Qb5 {[%emt 0:01:47]} Ree6 {[%emt 0:00:08]} 29. Rd8 {[%emt 0:10:20]} Qb7 {[%emt 0:02:09]} 30. Qb4 {[%emt 0:02:27]} Nd6 {[%emt 0:01:36]} 31. Bc5 {[%emt 0:03:14]} Qxb4 32. Bxb4 {[%emt 0:00:09]} Nb5 {[%emt 0:01:19]} 33. Bd1 {[%emt 0:04:27]} Nd4 {[%emt 0:00:19]} 34. Kf2 {[%emt 0:01:34]} Ra6 {[%emt 0:01:11]} 35. Ba3 {[%emt 0:04:31]} Nb5 {[%emt 0:00:23]} 36. Bc5 {[%emt 0:01:39]} Rec6 {[%emt 0:00:59]} 37. b4 {[%emt 0:03:25]} axb3 {[%emt 0:00:11]} 38. Bxb3 {[%emt 0:00:11]} Bf6 {[%emt 0:01:08]} 39. Nxe5+ {[%emt 0:00:36]} 1-0

[Event "Polish Youth 1st League 2022"]
[Site "Lublin"]
[Date "2022.07.02"]
[Round "8.10"]
[White "Kowalski, Witold"]
[Black "Jamrozik, Maciej"]
[Result "1-0"]
[ECO "C10"]
[WhiteElo "1613"]
[BlackElo "1251"]
[Annotator "NA RC"]
[PlyCount "87"]
[EventDate "2022.06.24"]
[EventType "team-tourn"]
[EventCountry "POL"]
[SourceTitle "playchess.com"]
[Source "ChessBase"]
[SourceQuality "1"]
[TimeControl "40/5400+30:1800+30"]

1. e4 {[%emt 0:00:02]} e6 {[%emt 0:00:13]} 2. d4 {[%emt 0:00:07]} d5 {[%emt 0:00:03]} 3. Nc3 {[%emt 0:00:07]} dxe4 {[%emt 0:00:05]} 4. Nxe4 {[%emt 0:00:06]} Nd7 {[%emt 0:00:03]} 5. Nf3 {[%emt 0:00:28]} Ngf6 {[%emt 0:00:10]} 6. Ng3 {[%emt 0:05:23]} c5 {[%emt 0:01:03]} 7. dxc5 {[%emt 0:09:08]} Bxc5 {[%emt 0:01:34]} 8. Bd3 {[%emt 0:00:24]} O-O {[%emt 0:02:31]} 9. O-O {[%emt 0:00:26]} b6 {[%emt 0:01:59]} 10. Re1 {[%emt 0:04:22]} Bb7 {[%emt 0:04:18]} 11. h3 {[%emt 0:02:55]} Qc7 {[%emt 0:03:51]} 12. Ne4 {[%emt 0:11:19]} Nxe4 {[%emt 0:03:56]} 13. Bxe4 {[%emt 0:00:07]} Bxe4 {[%emt 0:00:04]} 14. Rxe4 {[%emt 0:00:07]} Nf6 {[%emt 0:01:09]} 15. Re1 {[%emt 0:00:58]} Rad8 {[%emt 0:01:05]} 16. Qe2 {[%emt 0:00:40]} h6 {[%emt 0:06:18]} 17. c3 {[%emt 0:04:32]} a5 {[%emt 0:11:44]} 18. Be3 {[%emt 0:05:17]} Bxe3 {[%emt 0:02:28]} 19. Qxe3 {[%emt 0:00:26]} Rd5 {[%emt 0:01:57]} 20. Nd4 {[%emt 0:03:53]} Rfd8 {[%emt 0:01:38]} 21. a4 {[%emt 0:02:03]} Nd7 {[%emt 0:09:56]} 22. Nxe6 {[%emt 0:06:11]} fxe6 {[%emt 0:19:38]} 23. Qxe6+ {[%emt 0:00:07]} Kh8 {[%emt 0:00:03]} 24. Qxd5 {[%emt 0:00:12]} Nf6 {[%emt 0:00:33]} 25. Qf3 {[%emt 0:00:19]} Rf8 {[%emt 0:01:41]} 26. Qg3 {[%emt 0:01:10]} Qb7 {[%emt 0:03:28]} 27. Qd6 {[%emt 0:01:03]} Qa8 {[%emt 0:02:39]} 28. Rad1 {[%emt 0:01:41]} Rc8 {[%emt 0:07:50]} 29. Qxb6 {[%emt 0:02:26]} Nd5 {[%emt 0:01:40]} 30. Qd4 {[%emt 0:00:33]} Nf6 {[%emt 0:01:08]} 31. Re6 {[%emt 0:01:52]} Rf8 {[%emt 0:01:19]} 32. Rd6 {[%emt 0:00:20]} Qb7 {[%emt 0:00:30]} 33. Rd8 {[%emt 0:01:55]} Rxd8 {[%emt 0:00:16]} 34. Qxd8+ {[%emt 0:00:07]} Kh7 {[%emt 0:00:03]} 35. Qxa5 {[%emt 0:03:40]} Qxb2 {[%emt 0:01:32]} 36. Qf5+ {[%emt 0:00:50]} Kh8 {[%emt 0:00:22]} 37. Rd8+ {[%emt 0:00:19]} Ng8 {[%emt 0:00:06]} 38. Qf8 {[%emt 0:00:19]} Qc1+ {[%emt 0:02:20]} 39. Kh2 {[%emt 0:00:13]} Kh7 {[%emt 0:00:03]} 40. Qxg8+ {[%emt 0:00:00]} Kg6 {[%emt 0:00:00]} 41. Qe6+ {[%emt 0:00:20]} Kh5 {[%emt 0:02:26]} 42. Rd5+ {[%emt 0:00:06]} g5 {[%emt 0:00:15]} 43. Qf7+ {[%emt 0:00:20]} Kh4 {[%emt 0:00:16]} 44. g3# 1-0

[Event "Polish Youth 1st League 2022"]
[Site "Lublin"]
[Date "2022.07.02"]
[Round "8.11"]
[White "Uliasz, Katarzyna"]
[Black "Kudlak, Julia"]
[Result "0-1"]
[ECO "A15"]
[WhiteElo "1526"]
[BlackElo "1654"]
[Annotator "NA RC"]
[PlyCount "96"]
[EventDate "2022.06.24"]
[EventType "team-tourn"]
[EventCountry "POL"]
[SourceTitle "playchess.com"]
[Source "ChessBase"]
[SourceQuality "1"]
[TimeControl "40/5400+30:1800+30"]

1. c4 {[%emt 0:00:05]} Nf6 {[%emt 0:00:40]} 2. g3 {[%emt 0:00:08]} g6 {[%emt 0:01:16]} 3. Bg2 {[%emt 0:00:22]} Bg7 {[%emt 0:00:55]} 4. Nc3 {[%emt 0:00:37]} c5 {[%emt 0:02:31]} 5. e3 {[%emt 0:03:54]} O-O {[%emt 0:05:30]} 6. Nge2 {[%emt 0:00:42]} d6 {[%emt 0:03:17]} 7. O-O {[%emt 0:00:55]} Nc6 {[%emt 0:01:10]} 8. Nd5 {[%emt 0:03:36]} Nxd5 {[%emt 0:01:47]} 9. cxd5 {[%emt 0:00:50]} Nb4 {[%emt 0:03:32]} 10. d4 {[%emt 0:01:03]} b6 {[%emt 0:05:42]} 11. a3 {[%emt 0:07:28]} Na6 {[%emt 0:01:45]} 12. Rb1 {[%emt 0:01:53]} Nc7 {[%emt 0:06:36]} 13. dxc5 {[%emt 0:10:20]} bxc5 {[%emt 0:00:23]} 14. b4 {[%emt 0:00:27]} cxb4 {[%emt 0:02:44]} 15. Nd4 {[%emt 0:07:12]} bxa3 {[%emt 0:11:18]} 16. Nc6 {[%emt 0:00:25]} a2 {[%emt 0:03:28]} 17. Ra1 {[%emt 0:13:39]} Bxa1 {[%emt 0:06:03]} 18. Nxd8 {[%emt 0:00:08]} Bf6 {[%emt 0:01:36]} 19. Bb2 {[%emt 0:00:12]} Bxb2 {[%emt 0:00:27]} 20. Qa4 {[%emt 0:00:07]} a1=Q {[%emt 0:03:35]} 21. Rxa1 {[%emt 0:00:08]} Bxa1 {[%emt 0:00:07]} 22. Qxa1 {[%emt 0:00:13]} Rxd8 {[%emt 0:00:49]} 23. Qa5 {[%emt 0:00:15]} Bd7 {[%emt 0:10:57]} 24. h4 {[%emt 0:03:13]} Ne8 {[%emt 0:01:24]} 25. h5 {[%emt 0:00:18]} gxh5 {[%emt 0:00:51]} 26. e4 {[%emt 0:02:29]} f6 {[%emt 0:02:16]} 27. f4 {[%emt 0:01:06]} Rdc8 {[%emt 0:01:01]} 28. Qd2 {[%emt 0:01:03]} a5 {[%emt 0:00:52]} 29. e5 {[%emt 0:00:44]} Bg4 {[%emt 0:02:44]} 30. Be4 {[%emt 0:02:19]} f5 {[%emt 0:01:34]} 31. Bc2 {[%emt 0:00:46]} a4 {[%emt 0:00:41]} 32. exd6 {[%emt 0:00:28]} Nxd6 {[%emt 0:00:46]} 33. Bb1 {[%emt 0:04:30]} a3 {[%emt 0:01:48]} 34. Ba2 {[%emt 0:00:45]} Bf3 {[%emt 0:01:29]} 35. Qe1 {[%emt 0:01:35]} Be4 {[%emt 0:02:06]} 36. Qd1 {[%emt 0:01:49]} Rc2 {[%emt 0:00:41]} 37. Qxh5 {[%emt 0:00:45]} Rxa2 {[%emt 0:03:55]} 38. Qg5+ {[%emt 0:00:12]} Kf8 {[%emt 0:00:45]} 39. Qh6+ {[%emt 0:00:29]} Ke8 {[%emt 0:00:39]} 40. Qe6 {[%emt 0:00:00]} Rg2+ {[%emt 0:00:00]} 41. Kf1 {[%emt 0:00:49]} Rxg3 {[%emt 0:01:06]} 42. Qe5 {[%emt 0:00:36]} Rc8 {[%emt 0:02:17]} 43. Qa1 {[%emt 0:02:50]} a2 {[%emt 0:00:42]} 44. Qh8+ {[%emt 0:00:29]} Kd7 {[%emt 0:00:11]} 45. Qb2 {[%emt 0:00:35]} Rc2 {[%emt 0:00:44]} 46. Qe5 {[%emt 0:01:01]} Bd3+ {[%emt 0:00:08]} 47. Qe2 {[%emt 0:00:22]} a1=Q+ {[%emt 0:00:22]} 48. Kf2 {[%emt 0:00:05]} Qg1# {[%emt 0:00:39]} 0-1

[Event "Polish Youth 1st League 2022"]
[Site "Lublin"]
[Date "2022.07.02"]
[Round "8.12"]
[White "Dzierzgowska, Jagoda"]
[Black "Tokarz, Gabriela"]
[Result "0-1"]
[ECO "D15"]
[WhiteElo "1267"]
[BlackElo "1469"]
[Annotator "NA RC"]
[PlyCount "68"]
[EventDate "2022.06.24"]
[EventType "team-tourn"]
[EventCountry "POL"]
[SourceTitle "playchess.com"]
[Source "ChessBase"]
[SourceQuality "1"]
[TimeControl "40/5400+30:1800+30"]

1. d4 {[%emt 0:00:03]} d5 {[%emt 0:00:07]} 2. c4 {[%emt 0:00:25]} dxc4 {[%emt 0:00:05]} 3. Nf3 {[%emt 0:00:18]} Nf6 {[%emt 0:00:09]} 4. Nc3 {[%emt 0:01:25]} c6 {[%emt 0:04:51]} 5. Bf4 {[%emt 0:01:59]} Nd5 {[%emt 0:01:02]} 6. Bg3 {[%emt 0:14:45]} b5 {[%emt 0:02:02]} 7. e4 {[%emt 0:04:24]} Nxc3 {[%emt 0:00:21]} 8. bxc3 {[%emt 0:00:06]} Bg4 {[%emt 0:00:45]} 9. Be2 {[%emt 0:02:10]} e6 {[%emt 0:01:08]} 10. a4 {[%emt 0:02:13]} Bd6 {[%emt 0:03:56]} 11. O-O {[%emt 0:24:23]} Bxg3 {[%emt 0:00:27]} 12. hxg3 {[%emt 0:00:17]} O-O {[%emt 0:00:39]} 13. Nd2 {[%emt 0:07:55]} Bxe2 {[%emt 0:00:46]} 14. Qxe2 Nd7 {[%emt 0:01:49]} 15. Rfb1 {[%emt 0:02:32]} a6 {[%emt 0:00:53]} 16. Nf1 {[%emt 0:06:33]} Nb6 {[%emt 0:01:58]} 17. axb5 {[%emt 0:02:08]} cxb5 {[%emt 0:00:11]} 18. Ne3 {[%emt 0:01:48]} Qc7 {[%emt 0:02:32]} 19. Ra3 {[%emt 0:08:31]} Nd7 {[%emt 0:08:23]} 20. Qa2 {[%emt 0:01:54]} Qb7 {[%emt 0:04:03]} 21. f3 {[%emt 0:03:09]} e5 {[%emt 0:05:14]} 22. Nc2 {[%emt 0:02:51]} exd4 {[%emt 0:02:06]} 23. Nxd4 {[%emt 0:00:30]} Nc5 {[%emt 0:01:17]} 24. Kf1 {[%emt 0:04:39]} Qc7 {[%emt 0:01:11]} 25. Nxb5 {[%emt 0:04:35]} Qxg3 {[%emt 0:01:57]} 26. Nd4 {[%emt 0:00:57]} Nd3 {[%emt 0:03:16]} 27. Nf5 {[%emt 0:00:54]} Qh2 {[%emt 0:00:21]} 28. Ne3 {[%emt 0:00:41]} Rfd8 {[%emt 0:04:38]} 29. Ra4 {[%emt 0:01:51]} h6 {[%emt 0:04:46]} 30. Rxc4 {[%emt 0:00:47]} Qh1+ {[%emt 0:07:19]} 31. Ke2 {[%emt 0:00:07]} Nf4+ {[%emt 0:00:40]} 32. Kf2 {[%emt 0:00:19]} Nd3+ {[%emt 0:01:24]} 33. Ke2 {[%emt 0:01:06]} Qh4 {[%emt 0:00:33]} 34. Rf1 {[%emt 0:00:18]} Nf4# {[%emt 0:00:09]} 0-1

[Event "Polish Youth 1st League 2022"]
[Site "Lublin"]
[Date "2022.07.02"]
[Round "8.13"]
[White "Kania, Dominik"]
[Black "Wojdak, Jan"]
[Result "1-0"]
[ECO "B01"]
[WhiteElo "1872"]
[BlackElo "2144"]
[Annotator "RC"]
[PlyCount "105"]
[EventDate "2022.06.24"]
[EventType "team-tourn"]
[EventCountry "POL"]
[SourceTitle "playchess.com"]
[Source "ChessBase"]
[SourceQuality "1"]
[TimeControl "40/5400+30:1800+30"]

1. e4 {[%emt 0:00:19]} d5 {[%emt 0:00:06]} 2. exd5 {[%emt 0:00:55]} Qxd5 {[%emt 0:00:05]} 3. Nf3 {[%emt 0:00:18]} Nf6 {[%emt 0:00:10]} 4. d4 {[%emt 0:01:21]} Qd8 {[%emt 0:00:05]} 5. Bc4 {[%emt 0:01:47]} e6 {[%emt 0:02:55]} 6. O-O {[%emt 0:01:07]} Be7 {[%emt 0:02:07]} 7. Ne5 {[%emt 0:03:29]} Nbd7 {[%emt 0:01:03]} 8. Bf4 {[%emt 0:10:53]} c5 {[%emt 0:03:09]} 9. dxc5 {[%emt 0:07:34]} Bxc5 {[%emt 0:00:23]} 10. Nc3 {[%emt 0:02:20]} a6 {[%emt 0:00:58]} 11. Qf3 {[%emt 0:03:17]} O-O {[%emt 0:01:52]} 12. Rad1 {[%emt 0:01:52]} Be7 {[%emt 0:16:18]} 13. Rd3 {[%emt 0:26:02]} Qa5 {[%emt 0:12:59]} 14. Nxd7 {[%emt 0:03:47]} Bxd7 {[%emt 0:00:05]} 15. Qxb7 {[%emt 0:12:58]} Qc5 {[%emt 0:00:13]} 16. Bb3 {[%emt 0:02:42]} Bc6 {[%emt 0:16:58]} 17. Qc7 {[%emt 0:00:40]} Rac8 {[%emt 0:00:50]} 18. Qe5 {[%emt 0:00:15]} Qa7 {[%emt 0:00:39]} 19. Rg3 {[%emt 0:05:01]} Ne8 {[%emt 0:02:54]} 20. Ne4 {[%emt 0:03:46]} Qb7 {[%emt 0:02:24]} 21. Bh6 {[%emt 0:02:13]} f6 {[%emt 0:02:51]} 22. Bxe6+ {[%emt 0:06:18]} Kh8 {[%emt 0:00:02]} 23. Bxc8 {[%emt 0:00:06]} fxe5 {[%emt 0:03:17]} 24. Bxb7 {[%emt 0:00:05]} Bxb7 {[%emt 0:00:02]} 25. Bg5 {[%emt 0:00:04]} Bxe4 {[%emt 0:00:07]} 26. Bxe7 {[%emt 0:00:05]} Rf7 {[%emt 0:00:03]} 27. Ba3 {[%emt 0:00:20]} Bxc2 {[%emt 0:00:03]} 28. Rc1 {[%emt 0:00:44]} Rd7 {[%emt 0:00:02]} 29. Rc3 {[%emt 0:00:31]} Bg6 {[%emt 0:00:03]} 30. Rc5 {[%emt 0:00:40]} e4 {[%emt 0:00:08]} 31. Re5 {[%emt 0:00:18]} h6 {[%emt 0:00:04]} 32. Re6 {[%emt 0:00:59]} Nf6 {[%emt 0:00:03]} 33. Rxa6 {[%emt 0:01:00]} e3 {[%emt 0:00:02]} 34. Rd6 {[%emt 0:01:19]} exf2+ {[%emt 0:00:04]} 35. Kf1 {[%emt 0:02:01]} Rf7 {[%emt 0:03:57]} 36. Rd8+ {[%emt 0:00:28]} Kh7 {[%emt 0:00:12]} 37. Kxf2 {[%emt 0:00:38]} Ng4+ {[%emt 0:00:01]} 38. Kg3 {[%emt 0:00:43]} Ne3 {[%emt 0:00:02]} 39. Rf8 {[%emt 0:00:33]} Nf5+ {[%emt 0:00:13]} 40. Kf2 {[%emt 0:00:00]} Rd7 {[%emt 0:00:00]} 41. g4 {[%emt 0:14:45]} Nd6 {[%emt 0:01:26]} 42. Bxd6 {[%emt 0:00:21]} Rxd6 {[%emt 0:00:02]} 43. Rcc8 {[%emt 0:01:41]} Bb1 {[%emt 0:00:05]} 44. h4 {[%emt 0:01:51]} Kg6 {[%emt 0:00:23]} 45. Rc5 {[%emt 0:02:19]} h5 {[%emt 0:00:27]} 46. gxh5+ {[%emt 0:00:31]} Kh7 {[%emt 0:00:06]} 47. Rcc8 {[%emt 0:00:14]} Kh6 {[%emt 0:00:05]} 48. Rh8+ {[%emt 0:00:30]} Bh7 {[%emt 0:00:04]} 49. a4 {[%emt 0:01:36]} Rb6 {[%emt 0:00:07]} 50. b4 {[%emt 0:01:10]} Rf6+ {[%emt 0:00:16]} 51. Ke3 {[%emt 0:00:10]} Re6+ {[%emt 0:00:03]} 52. Kd4 {[%emt 0:00:07]} Re4+ {[%emt 0:00:05]} 53. Kc5 {[%emt 0:00:31]} 1-0

[Event "Polish Youth 1st League 2022"]
[Site "Lublin"]
[Date "2022.07.02"]
[Round "8.14"]
[White "Jendrowiak, Maciej"]
[Black "Lysakowski, Piotr"]
[Result "1-0"]
[ECO "B10"]
[WhiteElo "1713"]
[BlackElo "1542"]
[Annotator "NA RC"]
[PlyCount "83"]
[EventDate "2022.06.24"]
[EventType "team-tourn"]
[EventCountry "POL"]
[SourceTitle "playchess.com"]
[Source "ChessBase"]
[SourceQuality "1"]
[TimeControl "40/5400+30:1800+30"]

1. e4 {[%emt 0:00:02]} c6 {[%emt 0:00:00]} 2. Nf3 {[%emt 0:00:08]} d5 {[%emt 0:00:00]} 3. Nc3 {[%emt 0:04:31]} Nf6 {[%emt 0:00:03]} 4. exd5 {[%emt 0:00:54]} cxd5 {[%emt 0:02:53]} 5. d4 Nc6 6. Bf4 {[%emt 0:02:29]} Bg4 {[%emt 0:02:38]} 7. Be2 {[%emt 0:01:56]} Rc8 {[%emt 0:08:01]} 8. Ne5 {[%emt 0:02:17]} Bxe2 {[%emt 0:00:51]} 9. Nxe2 {[%emt 0:00:10]} e6 {[%emt 0:02:59]} 10. c3 {[%emt 0:02:26]} Qb6 {[%emt 0:07:30]} 11. Rb1 {[%emt 0:03:36]} Be7 {[%emt 0:01:50]} 12. O-O {[%emt 0:02:22]} O-O {[%emt 0:01:13]} 13. f3 {[%emt 0:25:04]} Nxe5 {[%emt 0:02:59]} 14. Bxe5 {[%emt 0:00:59]} Nd7 {[%emt 0:07:14]} 15. Bg3 {[%emt 0:04:54]} Bd6 16. Kh1 a6 {[%emt 0:06:45]} 17. Qd2 {[%emt 0:02:47]} Qc7 {[%emt 0:03:10]} 18. Rbc1 {[%emt 0:04:19]} b5 {[%emt 0:02:28]} 19. Qd3 {[%emt 0:02:59]} Bxg3 {[%emt 0:03:39]} 20. Nxg3 {[%emt 0:06:28]} Qc4 {[%emt 0:01:59]} 21. Qb1 {[%emt 0:07:03]} a5 {[%emt 0:04:49]} 22. b3 {[%emt 0:03:57]} Qc6 {[%emt 0:04:17]} 23. Qd3 Rc7 {[%emt 0:04:39]} 24. Rc2 {[%emt 0:04:12]} Rfc8 {[%emt 0:01:53]} 25. Rfc1 {[%emt 0:00:36]} Qb6 {[%emt 0:05:04]} 26. Nf1 {[%emt 0:00:54]} Rc6 27. Ne3 Qa6 {[%emt 0:04:30]} 28. f4 {[%emt 0:02:40]} a4 {[%emt 0:07:19]} 29. f5 {[%emt 0:04:20]} Nf6 {[%emt 0:01:58]} 30. fxe6 {[%emt 0:03:41]} Rxe6 {[%emt 0:03:18]} 31. Re1 {[%emt 0:04:15]} axb3 {[%emt 0:02:04]} 32. axb3 {[%emt 0:00:14]} Qa5 {[%emt 0:05:18]} 33. Kg1 {[%emt 0:01:46]} Rce8 {[%emt 0:01:33]} 34. Rce2 {[%emt 0:01:18]} Rc8 {[%emt 0:00:37]} 35. b4 {[%emt 0:01:17]} Qc7 {[%emt 0:02:08]} 36. Nd1 {[%emt 0:02:44]} Ne4 {[%emt 0:01:31]} 37. Rc2 {[%emt 0:00:51]} Rh6 {[%emt 0:00:54]} 38. h3 {[%emt 0:00:27]} Qc4 {[%emt 0:00:33]} 39. Qxc4 {[%emt 0:00:16]} Rxc4 {[%emt 0:00:07]} 40. Ne3 {[%emt 0:00:00]} Rxc3 {[%emt 0:00:00]} 41. Rxc3 {[%emt 0:01:00]} Nxc3 {[%emt 0:00:48]} 42. Nxd5 {[%emt 0:00:09]} 1-0

[Event "Polish Youth 1st League 2022"]
[Site "Lublin"]
[Date "2022.07.02"]
[Round "8.15"]
[White "Musial, Igor"]
[Black "Wierzbicki, Dawid"]
[Result "1-0"]
[ECO "B41"]
[WhiteElo "1699"]
[BlackElo "1556"]
[Annotator "NA RC"]
[PlyCount "61"]
[EventDate "2022.06.24"]
[EventType "team-tourn"]
[EventCountry "POL"]
[SourceTitle "playchess.com"]
[Source "ChessBase"]
[SourceQuality "1"]
[TimeControl "40/5400+30:1800+30"]

1. e4 {[%emt 0:00:02]} c5 {[%emt 0:00:49]} 2. Nf3 {[%emt 0:00:05]} e6 {[%emt 0:00:27]} 3. d4 {[%emt 0:00:22]} cxd4 {[%emt 0:00:29]} 4. Nxd4 {[%emt 0:00:05]} a6 {[%emt 0:00:09]} 5. c4 {[%emt 0:01:55]} Nf6 {[%emt 0:00:30]} 6. Nc3 {[%emt 0:00:42]} d6 {[%emt 0:00:29]} 7. Be3 {[%emt 0:01:27]} Qc7 {[%emt 0:00:41]} 8. Be2 {[%emt 0:01:01]} b6 {[%emt 0:00:36]} 9. f3 {[%emt 0:00:50]} Bb7 {[%emt 0:00:30]} 10. O-O {[%emt 0:00:32]} Nbd7 {[%emt 0:00:57]} 11. Rc1 {[%emt 0:04:03]} Be7 {[%emt 0:00:51]} 12. a3 {[%emt 0:00:28]} O-O {[%emt 0:01:27]} 13. Qd2 {[%emt 0:01:32]} Rfc8 {[%emt 0:01:37]} 14. Rc2 {[%emt 0:03:12]} Kh8 {[%emt 0:05:19]} 15. b4 {[%emt 0:16:44]} Qd8 {[%emt 0:01:33]} 16. Rb1 {[%emt 0:10:33]} Ne5 {[%emt 0:08:40]} 17. Na4 {[%emt 0:07:53]} Ned7 {[%emt 0:17:23]} 18. Qc1 {[%emt 0:06:56]} Rab8 {[%emt 0:13:28]} 19. Nb3 {[%emt 0:15:26]} Qc7 {[%emt 0:00:58]} 20. Rbb2 {[%emt 0:04:18]} Bc6 {[%emt 0:01:55]} 21. b5 {[%emt 0:05:59]} Bb7 {[%emt 0:00:17]} 22. bxa6 {[%emt 0:00:09]} Bxa6 {[%emt 0:02:08]} 23. c5 {[%emt 0:01:54]} b5 {[%emt 0:02:47]} 24. Nb6 {[%emt 0:05:03]} Rd8 {[%emt 0:05:17]} 25. Nxd7 {[%emt 0:01:23]} Qxd7 {[%emt 0:01:23]} 26. c6 {[%emt 0:05:02]} Qc7 {[%emt 0:00:11]} 27. Nd4 {[%emt 0:00:56]} d5 {[%emt 0:00:36]} 28. e5 {[%emt 0:01:04]} Ne8 {[%emt 0:00:45]} 29. Rb3 {[%emt 0:00:09]} Rdc8 {[%emt 0:01:45]} 30. f4 {[%emt 0:00:25]} Qd8 {[%emt 0:05:17]} 31. a4 {[%emt 0:00:54]} 1-0

[Event "Polish Youth 1st League 2022"]
[Site "Lublin"]
[Date "2022.07.02"]
[Round "8.16"]
[White "Oles, Mateusz"]
[Black "Rozek, Michal"]
[Result "0-1"]
[ECO "C54"]
[WhiteElo "1201"]
[BlackElo "1533"]
[Annotator "NA RC"]
[PlyCount "64"]
[EventDate "2022.06.24"]
[EventType "team-tourn"]
[EventCountry "POL"]
[SourceTitle "playchess.com"]
[Source "ChessBase"]
[SourceQuality "1"]
[TimeControl "40/5400+30:1800+30"]

1. e4 {[%emt 0:00:03]} e5 {[%emt 0:00:08]} 2. Nf3 {[%emt 0:00:05]} Nc6 {[%emt 0:00:08]} 3. Bc4 {[%emt 0:00:06]} Bc5 {[%emt 0:00:07]} 4. c3 {[%emt 0:00:20]} Nf6 {[%emt 0:00:10]} 5. d4 {[%emt 0:00:23]} exd4 {[%emt 0:00:09]} 6. cxd4 {[%emt 0:00:05]} Bb4+ {[%emt 0:00:13]} 7. Nbd2 {[%emt 0:00:26]} Nxe4 {[%emt 0:03:42]} 8. d5 {[%emt 0:00:36]} Ne7 {[%emt 0:03:13]} 9. O-O {[%emt 0:00:49]} Bxd2 {[%emt 0:14:48]} 10. Nxd2 {[%emt 0:16:41]} Nxd2 {[%emt 0:05:03]} 11. Bxd2 {[%emt 0:08:48]} d6 {[%emt 0:02:10]} 12. Bc3 {[%emt 0:03:32]} O-O {[%emt 0:01:47]} 13. Re1 {[%emt 0:04:54]} Bf5 {[%emt 0:04:22]} 14. Re3 {[%emt 0:06:31]} Bg6 {[%emt 0:08:59]} 15. Qb3 {[%emt 0:07:28]} Nf5 {[%emt 0:09:13]} 16. Re2 {[%emt 0:03:17]} Rb8 {[%emt 0:05:10]} 17. Rae1 {[%emt 0:04:54]} b5 {[%emt 0:15:36]} 18. Bd3 {[%emt 0:08:02]} b4 {[%emt 0:01:36]} 19. Bxf5 {[%emt 0:01:37]} bxc3 {[%emt 0:01:32]} 20. Qc2 {[%emt 0:00:44]} Rxb2 {[%emt 0:01:09]} 21. Qd3 {[%emt 0:01:47]} Rxe2 {[%emt 0:05:08]} 22. Rxe2 {[%emt 0:00:18]} Bxf5 {[%emt 0:08:46]} 23. Qxf5 {[%emt 0:00:15]} Re8 {[%emt 0:00:47]} 24. Qd3 {[%emt 0:01:47]} Rxe2 {[%emt 0:00:49]} 25. Qxe2 {[%emt 0:00:06]} Qb8 {[%emt 0:00:19]} 26. g4 {[%emt 0:03:57]} g6 {[%emt 0:00:53]} 27. g5 {[%emt 0:01:12]} Qb2 {[%emt 0:01:04]} 28. Qe8+ {[%emt 0:04:42]} Kg7 {[%emt 0:00:11]} 29. h4 {[%emt 0:01:20]} c2 {[%emt 0:00:17]} 30. Qe7 {[%emt 0:00:43]} c1=Q+ {[%emt 0:00:18]} 31. Kg2 {[%emt 0:00:07]} Qe5 {[%emt 0:00:48]} 32. Qd8 {[%emt 0:00:24]} Qe4+ {[%emt 0:00:36]} 0-1